fUST/lending_fUST_20260131
["ID","MTS","AMOUNT","RATE_DAILY","PERIOD"]
[404075626,1769789058694,500.0,0.00030137,120]
[404075627,1769789081339,300.0,0.00030137,120]
[404075707,1769789234119,-1786.9671175,0.00016508,2]
[404075708,1769789403382,159.32,9e-05,2]
[404075709,1769789403918,159.32,9.1e-05,2]
[404075710,1769789408883,159.31,8.981e-05,2]
[404075711,1769789412947,-159.32,9.2e-05,2]
[404075712,1769789419833,2627.58039996,9.2e-05,2]
[404075713,1769789428007,5000.0,9.2e-05,2]
[404075738,1769789432518,-159.32,9.3e-05,2]
[404075739,1769789432528,-159.32,9.4e-05,2]
[404075741,1769789432538,-159.32,9.5e-05,2]
[404075744,1769789432552,-159.32,9.6e-05,2]
[404075746,1769789432564,-159.32,9.7e-05,2]
[404075748,1769789432577,-159.32,9.8e-05,2]
[404075750,1769789432590,-150.0,0.00016542,2]
[404075752,1769789432603,-34.46279329,0.00017478,2]
[404075753,1769789432616,-145.51619671,0.00017478,2]
[404075755,1769789432628,-500.0,0.00017549,2]
[404075758,1769789432641,-79.70700521,0.00017549,2]
[404075760,1769789432655,-363.67382505,0.00017549,2]
[404075762,1769789432668,-56.61916974,0.00017549,2]
[404075763,1769789432680,-249.64083026,0.00017549,2]
[404075765,1769789432696,-250.35916974,0.00017549,2]
[404075767,1769789432708,-238.61299643,0.00017549,2]
[404075768,1769789432720,-68.28783383,0.00017899,2]
[404075769,1769789432734,-1038.83719804,0.00017899,2]
[404075774,1769789438600,-4574.58573167,0.00017899,2]
[404075775,1769789438612,-300.0,0.00017899,2]
[404075776,1769789438623,-210.99754786,0.00017899,2]
[404075777,1769789438638,-89.00245214,0.00017899,2]
[404075778,1769789438654,-223.29806405,0.00017899,2]
[404076284,1769789445815,-76.70193595,0.00017899,2]
[404076285,1769789445827,-300.0,0.00017899,2]
[404076286,1769789445838,-300.0,0.00017899,2]
[404076287,1769789445849,-300.0,0.00017899,2]
[404076288,1769789445860,-300.0,0.00017899,2]
[404076289,1769789445872,-300.0,0.00017899,2]
[404076290,1769789445883,-300.0,0.00017899,2]
[404076291,1769789445894,-300.0,0.00017899,2]
[404076292,1769789445908,-300.0,0.00017899,2]
[404076293,1769789445920,-300.0,0.00017899,2]
[404076294,1769789445931,-300.0,0.00017899,2]
[404076295,1769789445940,-300.0,0.00017899,2]
[404076296,1769789445950,-300.0,0.00017899,2]
[404076299,1769789446125,-485.077566,0.00017905,2]
[404076300,1769789446144,-600.0,0.00018256,2]
[404076301,1769789446157,-177.0,0.00018542,2]
[404076302,1769789446166,-1468.59,0.000187,3]
[404076304,1769789446176,-1325.66212249,0.00018762,2]
[404076306,1769789446185,-485.91789678,0.000189,2]
[404076308,1769789446195,-1798.05563518,0.000189,2]
[404076309,1769789446204,-186.246,0.00018999,2]
[404076310,1769789446214,-222.64473395,0.00018999,2]
[404076311,1769789446223,-280.7113952,0.00018999,2]
[404076312,1769789446233,-34301.93856411,0.00019,2]
[404076321,1769789447017,-1040.36882238,0.00019,2]
[404076322,1769789447029,-346.38830132,0.00019,2]
[404076324,1769789723843,10000.0,0.00030137,120]
[404076325,1769789749141,5904.0,0.00030137,120]
[404076326,1769790002204,153.28,9e-05,2]
[404076327,1769790155574,500.0,0.00026,120]
[404076328,1769790156376,500.0,0.00026,120]
[404076329,1769790157187,500.0,0.00026,120]
[404076330,1769790157986,500.0,0.00026,120]
[404076331,1769790159628,500.0,0.00026,120]
[404076332,1769790160381,500.0,0.00026,120]
[404076333,1769790161140,500.0,0.00026,120]
[404076334,1769790227363,500.0,0.00026,120]
[404076335,1769790228148,500.0,0.00026,120]
[404076336,1769790228952,500.0,0.00026,120]
[404076337,1769790229798,500.0,0.00026,120]
[404076338,1769790230598,500.0,0.00026,120]
[404076339,1769790231422,500.0,0.00026,120]
[404076340,1769790232669,500.0,0.00026,120]
[404076341,1769790233463,500.0,0.00026,120]
[404076342,1769790234263,384.58,0.00026,120]
[404076343,1769790447850,-585.5548305,0.00016896,2]
[404076366,1769790631645,-3072.60441869,0.00016559,2]
[404076368,1769790631656,-300.0,0.00016726,2]
[404076370,1769790631665,-300.0,0.00016726,2]
[404076372,1769790631675,-1200.0,0.00016726,2]
[404076374,1769790631684,-5000.0,0.00016727,2]
[404076376,1769790631693,-664.0,0.00016727,2]
[404076377,1769790631702,-4420.91181624,0.00016796,2]
[404076380,1769790631713,-300.0,0.00016895,2]
[404076381,1769790631722,-300.0,0.00016895,2]
[404076383,1769790631732,-300.0,0.00016895,2]
[404076385,1769790631741,-1001.00262726,0.00017,2]
[404076386,1769790631751,-150.0,0.00017153,2]
[404076387,1769790631760,-420.0,0.00018274,2]
[404076388,1769790631769,-300.0,0.00018274,2]
[404076389,1769790631780,-1680.0,0.00018365,2]
[404076391,1769790631796,-348.0,0.00018455,2]
[404076393,1769790631806,-388.0,0.00018455,2]
[404076395,1769790631815,-192.579,0.00018518,2]
[404076397,1769790631824,-300.0,0.00018585,2]
[404076399,1769790631835,-295.62,0.000186,2]
[404076401,1769790631844,-472.06,0.000187,3]
[404076403,1769790631853,-500.0,0.00018726,2]
[404076405,1769790631864,-550.0,0.00018863,2]
[404076407,1769790631874,-1001.0736353,0.00018999,2]
[404076409,1769790631884,-500.0,0.00018999,2]
[404076410,1769790631893,-500.0,0.00018999,2]
[404076411,1769790631903,-520.61540906,0.00019,2]
[404076412,1769790631914,-61278.86258649,0.00019,2]
[404076413,1769790631926,-332.93679327,0.00019,2]
[404076419,1769790637748,-41628.63330541,0.00019,2]
[404076421,1769790637759,-21667.07596507,0.00019,2]
[404076422,1769790637771,-26619.10325869,0.00019,2]
[404076423,1769790637782,-5029.27862266,0.00019,2]
[404076424,1769790637797,-413.60636594,0.00019,2]
[404076425,1769790637810,-110475.57018861,0.00019,2]
[404076476,1769790640160,-38842.87933178,0.00019,2]
[404077039,1769790646268,-837.380915,0.00019,2]
[404077040,1769790646280,-165955.23461882,0.00019,2]
[404077041,1769790646291,-2916.063845,0.00019,2]
[404077044,1769791627096,-2021.54484308,0.00017386,2]
[404077060,1769791831757,-150.0,0.00017518,2]
[404077062,1769791831767,-299.74,0.00017739,2]
[404077067,1769791831810,-163.9363816,0.00017739,2]
[404077068,1769791831820,-150.0,0.00018509,2]
[404077069,1769791831829,-300.0,0.00018509,2]
[404077070,1769791831840,-711.5125542,0.00018509,2]
[404077096,1769791837876,-5000.0,0.0001704,2]
[404077098,1769791837885,-8.4874458,0.00018509,2]
[404077099,1769791837895,-196.49797664,0.0001851,2]
[404077101,1769791837905,-518.90760414,0.0001851,2]
[404077103,1769791837914,-500.0,0.0001851,2]
[404077105,1769791837924,-500.0,0.0001851,2]
[404077107,1769791837934,-500.0,0.0001851,2]
[404077108,1769791837944,-500.0,0.0001851,2]
[404077110,1769791837953,-500.0,0.0001851,2]
[404077112,1769791837962,-500.0,0.0001851,2]
[404077114,1769791837971,-500.0,0.0001851,2]
[404077115,1769791837982,-500.0,0.0001851,2]
[404077117,1769791837992,-500.0,0.0001851,2]
[404077119,1769791838001,-500.0,0.0001851,2]
[404077121,1769791838011,-596.33402809,0.0001851,2]
[404077122,1769791838020,-500.0,0.0001851,2]
[404077123,1769791838031,-500.0,0.0001851,2]
[404077124,1769791838041,-500.0,0.0001851,2]
[404077125,1769791838050,-500.0,0.0001851,2]
[404077126,1769791838060,-500.0,0.0001851,2]
[404077127,1769791838070,-500.0,0.0001851,2]
[404077128,1769791838079,-500.0,0.0001851,2]
[404077129,1769791838089,-500.0,0.0001851,2]
[404077130,1769791838099,-500.0,0.0001851,2]
[404077131,1769791838108,-500.0,0.0001851,2]
[404077132,1769791838118,-500.0,0.0001851,2]
[404077133,1769791838131,-500.0,0.0001851,2]
[404077134,1769791838147,-500.0,0.0001851,2]
[404077135,1769791838160,-500.0,0.0001851,2]
[404077136,1769791838171,-500.0,0.0001851,2]
[404077137,1769791838181,-500.0,0.0001851,2]
[404077138,1769791838193,-500.0,0.0001851,2]
[404077139,1769791838206,-500.0,0.0001851,2]
[404077140,1769791838216,-500.0,0.0001851,2]
[404077141,1769791838226,-500.0,0.0001851,2]
[404077142,1769791838236,-500.0,0.0001851,2]
[404077143,1769791838245,-500.0,0.0001851,2]
[404077144,1769791838256,-399.47446696,0.0001851,2]
[404077145,1769791838399,-147.14104741,0.0001851,2]
[404077146,1769791838410,-500.0,0.0001851,2]
[404077147,1769791838419,-156.69376432,0.0001851,2]
[404077148,1769791838429,-500.0,0.0001851,2]
[404077149,1769791838440,-500.0,0.0001851,2]
[404077150,1769791838449,-500.0,0.0001851,2]
[404077151,1769791838459,-500.0,0.0001851,2]
[404077152,1769791838469,-500.0,0.0001851,2]
[404077153,1769791838478,-500.0,0.0001851,2]
[404077154,1769791838488,-207.84398878,0.0001851,2]
[404077155,1769791838499,-500.0,0.0001851,2]
[404077156,1769791838508,-378.01280031,0.0001851,2]
[404077157,1769791838518,-500.0,0.0001851,2]
[404077158,1769791838528,-500.0,0.0001851,2]
[404077159,1769791838537,-500.0,0.0001851,2]
[404077160,1769791838547,-500.0,0.0001851,2]
[404077161,1769791838557,-500.0,0.0001851,2]
[404077162,1769791838567,-500.0,0.0001851,2]
[404077163,1769791838577,-500.0,0.0001851,2]
[404077164,1769791838587,-636.45482089,0.0001851,2]
[404077165,1769791838598,-500.0,0.0001851,2]
[404077166,1769791838607,-500.0,0.0001851,2]
[404077167,1769791838617,-500.0,0.0001851,2]
[404077168,1769791838630,-500.0,0.0001851,2]
[404077169,1769791838641,-500.0,0.0001851,2]
[404077170,1769791838653,-500.0,0.0001851,2]
[404077171,1769791838663,-500.0,0.0001851,2]
[404077172,1769791838674,-500.0,0.0001851,2]
[404077173,1769791838684,-500.0,0.0001851,2]
[404077174,1769791838696,-500.0,0.0001851,2]
[404077175,1769791838707,-500.0,0.0001851,2]
[404077176,1769791838868,-500.0,0.0001851,2]
[404077177,1769791838880,-500.0,0.0001851,2]
[404077178,1769791838890,-500.0,0.0001851,2]
[404077179,1769791838900,-500.0,0.0001851,2]
[404077180,1769791838910,-500.0,0.0001851,2]
[404077181,1769791838920,-500.0,0.0001851,2]
[404077182,1769791838934,-500.0,0.0001851,2]
[404077183,1769791838946,-500.0,0.0001851,2]
[404077184,1769791838956,-500.0,0.0001851,2]
[404077185,1769791838967,-500.0,0.0001851,2]
[404077186,1769791838978,-500.0,0.0001851,2]
[404077187,1769791838989,-500.0,0.0001851,2]
[404077188,1769791838999,-500.0,0.0001851,2]
[404077189,1769791839009,-500.0,0.0001851,2]
[404077190,1769791839018,-500.0,0.0001851,2]
[404077191,1769791839028,-500.0,0.0001851,2]
[404077192,1769791839038,-500.0,0.0001851,2]
[404077193,1769791839048,-500.0,0.0001851,2]
[404077194,1769791839059,-500.0,0.0001851,2]
[404077195,1769791839068,-500.0,0.0001851,2]
[404077196,1769791839078,-500.0,0.0001851,2]
[404077197,1769791839087,-500.0,0.0001851,2]
[404077198,1769791839103,-500.0,0.0001851,2]
[404077199,1769791839112,-184.27624442,0.0001851,2]
[404077200,1769791839122,-500.0,0.0001851,2]
[404077201,1769791839134,-500.0,0.0001851,2]
[404077202,1769791839143,-500.0,0.0001851,2]
[404077203,1769791839152,-500.0,0.0001851,2]
[404077204,1769791839162,-500.0,0.0001851,2]
[404077205,1769791839172,-500.0,0.0001851,2]
[404077206,1769791839182,-489.20761565,0.0001851,2]
[404077207,1769791839198,-10.79238435,0.0001851,2]
[404077208,1769791839208,-500.0,0.0001851,2]
[404077209,1769791839218,-500.0,0.0001851,2]
[404077210,1769791839227,-500.0,0.0001851,2]
[404077211,1769791839236,-500.0,0.0001851,2]
[404077212,1769791839249,-500.0,0.0001851,2]
[404077213,1769791839259,-277.05947985,0.0001851,2]
[404077214,1769791839271,-222.94052015,0.0001851,2]
[404077215,1769791839282,-163.7861582,0.0001851,2]
[404077216,1769791839294,-336.2138418,0.0001851,2]
[404077217,1769791839303,-154.9572954,0.0001851,2]
[404077840,1769791881186,682.43,0.0003013,120]
[404077841,1769792271879,410.08,0.00026,120]
[404077961,1769792794443,800.0,0.0003013,120]
[404077962,1769792976156,1000.0,0.00030136,120]
[404078044,1769793032719,-747.47682233,0.00016387,2]
[404078045,1769793032877,-4252.52317767,0.00016387,2]
[404078046,1769793032886,-1786.9671175,0.00016553,2]
[404078047,1769793032896,-661.0,0.00016553,2]
[404078048,1769793032905,-1200.0,0.00016719,2]
[404078049,1769793032916,-150.0,0.00016805,2]
[404078050,1769793032926,-1573.2986808,0.00017306,2]
[404078051,1769793032935,-300.0,0.00017403,2]
[404078052,1769793032945,-281.0,0.00017403,2]
[404078053,1769793032957,-300.0,0.00017403,2]
[404078054,1769793032968,-300.0,0.00017403,2]
[404078055,1769793032976,-300.0,0.00017404,2]
[404078056,1769793032986,-50000.0,0.00017404,2]
[404078057,1769793032995,-605.7969977,0.00017405,2]
[404078058,1769793033004,-500.0,0.00017406,2]
[404078059,1769793033014,-500.0,0.00017406,2]
[404078060,1769793033023,-500.0,0.00017406,2]
[404078061,1769793033032,-500.0,0.00017406,2]
[404078062,1769793033042,-416.45998333,0.00017406,2]
[404078063,1769793033052,-677.44178739,0.00017406,2]
[404078064,1769793033061,-677.44178739,0.00017406,2]
[404078065,1769793033070,-677.44178739,0.00017406,2]
[404078066,1769793033080,-677.44178739,0.00017406,2]
[404078067,1769793033089,-677.44178739,0.00017406,2]
[404078068,1769793033099,-12.00588246,0.00017406,2]
[404078069,1769793033155,-302.0,0.00017407,2]
[404078072,1769793038117,-198.0,0.00017407,2]
[404078073,1769793038127,-500.0,0.00017407,2]
[404078074,1769793038136,-1000.0,0.00017583,2]
[404078075,1769793038146,-151.0,0.0001851,2]
[404078076,1769793038155,-151.0,0.0001851,2]
[404078077,1769793038165,-151.0,0.0001851,2]
[404078078,1769793038174,-151.0,0.0001851,2]
[404078079,1769793038183,-151.0,0.0001851,2]
[404078080,1769793038192,-292.0,0.0001851,2]
[404078081,1769793038201,-151.0,0.0001851,2]
[404078082,1769793038213,-152.0,0.0001851,2]
[404078083,1769793038223,-152.0,0.0001851,2]
[404078084,1769793038232,-151.0,0.0001851,2]
[404078085,1769793038242,-152.0,0.0001851,2]
[404078086,1769793038252,-151.0,0.0001851,2]
[404078087,1769793038262,-152.0,0.0001851,2]
[404078088,1769793038270,-152.0,0.0001851,2]
[404078089,1769793038278,-240.0,0.0001851,2]
[404078090,1769793038286,-150.0,0.00018589,2]
[404078091,1769793038295,-150.0,0.00018589,2]
[404078092,1769793038306,-500.0,0.00018589,2]
[404078093,1769793038317,-150.0,0.00018589,2]
[404078094,1769793038327,-500.0,0.00018589,2]
[404078095,1769793038337,-150.0,0.00018589,2]
[404078097,1769793038348,-500.0,0.00018589,2]
[404078098,1769793038358,-500.0,0.00018589,2]
[404078099,1769793038369,-500.0,0.00018589,2]
[404078100,1769793038379,-204.99552893,0.00018589,2]
[404078101,1769793038401,-295.00447107,0.00018589,2]
[404078102,1769793038411,-35.79417449,0.00018589,2]
[404078103,1769793038424,-464.20582551,0.00018589,2]
[404078104,1769793038434,-500.0,0.00018589,2]
[404078105,1769793038444,-500.0,0.00018589,2]
[404078106,1769793038457,-150.0,0.00018589,2]
[404078107,1769793038470,-500.0,0.00018589,2]
[404078108,1769793038479,-150.0,0.00018589,2]
[404078109,1769793038489,-150.0,0.00018589,2]
[404078110,1769793038499,-150.0,0.00018589,2]
[404078111,1769793038511,-197.14516677,0.0001862,2]
[404078112,1769793038521,-428.23711361,0.00018726,2]
[404078789,1769793046386,-500.0,0.00017403,2]
[404078791,1769793046396,-467.53822097,0.00017403,2]
[404078793,1769793046406,-500.0,0.00017403,2]
[404078795,1769793046415,-500.0,0.00017403,2]
[404078797,1769793046427,-500.0,0.00017403,2]
[404078799,1769793046436,-500.0,0.00017403,2]
[404078801,1769793046445,-222.89469607,0.00017403,2]
[404078803,1769793046456,-277.10530393,0.00017403,2]
[404078805,1769793046468,-500.0,0.00017403,2]
[404078807,1769793046478,-500.0,0.00017403,2]
[404078809,1769793046487,-51.44378014,0.00017403,2]
[404078811,1769793046502,-448.55621986,0.00017403,2]
[404078813,1769793046514,-500.0,0.00017403,2]
[404078815,1769793046523,-500.0,0.00017403,2]
[404078817,1769793046532,-500.0,0.00017403,2]
[404078819,1769793046544,-500.0,0.00017403,2]
[404078821,1769793046554,-500.0,0.00017403,2]
[404078823,1769793046563,-167.51009298,0.00017403,2]
[404078879,1769793536464,-300.0,0.0001,2]
[404078880,1769793538354,-300.0,0.0001,2]
[404078881,1769793565419,-300.0,9.999e-05,2]
[404078882,1769793598164,-300.0,0.0001,2]
[404078883,1769793599417,-300.0,0.0001,2]
[404078884,1769793600269,-300.0,0.0001,2]
[404078885,1769793602662,-300.0,0.0001,2]
[404078886,1769793603480,163.97,9e-05,2]
[404078959,1769794196126,575.0,9.07e-05,2]
[404078960,1769794202925,156.26,9e-05,2]
[404078961,1769794204290,156.25,8.981e-05,2]
[404078962,1769794208282,1422.31,8.919e-05,2]
[404078963,1769794220737,-678.14070067,9.319e-05,2]
[404078964,1769794220770,-426.97045312,9.319e-05,2]
[404078981,1769794232111,-94.88884621,9.319e-05,2]
[404078982,1769794232121,-3526.61299524,9.32e-05,2]
[404078983,1769794232145,-479.10796181,9.32e-05,2]
[404078984,1769794232154,-551.0,9.32e-05,2]
[404078986,1769794232164,-585.5548305,9.414e-05,2]
[404078988,1769794232173,-5000.0,9.509e-05,2]
[404078990,1769794232183,-300.0,9.799e-05,2]
[404078992,1769794232192,-300.0,9.799e-05,2]
[404078995,1769794232202,-300.0,9.799e-05,2]
[404078997,1769794232212,-300.0,9.799e-05,2]
[404078999,1769794232222,-300.0,9.799e-05,2]
[404079001,1769794232231,-300.0,9.799e-05,2]
[404079003,1769794232241,-285.545,9.8e-05,2]
[404079004,1769794232250,-500.0,9.998e-05,2]
[404079006,1769794232260,-381.02478636,9.998e-05,2]
[404079008,1769794232269,-393.61071244,9.998e-05,2]
[404079010,1769794232278,-500.0,9.998e-05,2]
[404079012,1769794232287,-500.0,9.998e-05,2]
[404079015,1769794232297,-500.0,9.998e-05,2]
[404079017,1769794232306,-500.0,9.998e-05,2]
[404079019,1769794232315,-500.0,9.998e-05,2]
[404079021,1769794232324,-435.30270889,9.998e-05,2]
[404079079,1769794238239,-5000.0,9.898e-05,2]
[404079080,1769794238250,-64.69729111,9.998e-05,2]
[404079081,1769794238261,-500.0,9.998e-05,2]
[404079082,1769794238271,-500.0,9.998e-05,2]
[404079083,1769794238280,-500.0,9.998e-05,2]
[404079084,1769794238290,-500.0,9.998e-05,2]
[404079085,1769794238301,-500.0,9.998e-05,2]
[404079086,1769794238311,-500.0,9.998e-05,2]
[404079087,1769794238321,-500.0,9.998e-05,2]
[404079088,1769794238331,-500.0,9.998e-05,2]
[404079089,1769794238340,-175.30270889,9.998e-05,2]
[404079090,1769794238357,-324.69729111,9.998e-05,2]
[404079091,1769794238368,-500.0,9.998e-05,2]
[404079092,1769794238378,-500.0,9.998e-05,2]
[404079093,1769794238388,-500.0,9.998e-05,2]
[404079094,1769794238398,-500.0,9.998e-05,2]
[404079095,1769794238408,-500.0,9.998e-05,2]
[404079096,1769794238417,-500.0,9.998e-05,2]
[404079097,1769794238428,-500.0,9.998e-05,2]
[404079098,1769794238437,-500.0,9.998e-05,2]
[404079099,1769794238447,-500.0,9.998e-05,2]
[404079100,1769794238456,-500.0,9.998e-05,2]
[404079101,1769794238469,-500.0,9.998e-05,2]
[404079102,1769794238479,-500.0,9.998e-05,2]
[404079103,1769794238488,-500.0,9.998e-05,2]
[404079104,1769794238498,-500.0,9.998e-05,2]
[404079105,1769794238508,-500.0,9.998e-05,2]
[404079106,1769794238518,-500.0,9.998e-05,2]
[404079107,1769794238527,-500.0,9.998e-05,2]
[404079108,1769794238537,-500.0,9.998e-05,2]
[404079109,1769794238546,-500.0,9.998e-05,2]
[404079110,1769794238556,-500.0,9.998e-05,2]
[404079111,1769794238566,-500.0,9.998e-05,2]
[404079112,1769794238575,-500.0,9.998e-05,2]
[404079113,1769794238585,-500.0,9.998e-05,2]
[404079114,1769794238594,-500.0,9.998e-05,2]
[404079115,1769794238604,-500.0,9.998e-05,2]
[404079116,1769794238613,-500.0,9.998e-05,2]
[404079117,1769794238623,-500.0,9.998e-05,2]
[404079118,1769794238632,-500.0,9.998e-05,2]
[404079119,1769794238642,-500.0,9.998e-05,2]
[404079120,1769794238657,-500.0,9.998e-05,2]
[404079121,1769794238672,-500.0,9.998e-05,2]
[404079122,1769794238687,-500.0,9.998e-05,2]
[404079123,1769794238700,-500.0,9.998e-05,2]
[404079124,1769794238714,-500.0,9.998e-05,2]
[404079125,1769794238728,-199.6452731,9.998e-05,2]
[404079126,1769794238743,-300.3547269,9.998e-05,2]
[404079127,1769794238755,-93.2115146,9.998e-05,2]
[404079798,1769794246400,-406.7884854,9.998e-05,2]
[404079800,1769794246411,-500.0,9.998e-05,2]
[404079803,1769794246422,-600.75908368,9.998e-05,2]
[404079805,1769794246433,-500.0,9.998e-05,2]
[404079807,1769794246443,-500.0,9.998e-05,2]
[404079809,1769794246454,-383.01514557,9.998e-05,2]
[404079819,1769794246563,-116.98485443,9.998e-05,2]
[404079820,1769794246574,-266.72922359,9.998e-05,2]
[404079821,1769794246587,-293.59738197,9.998e-05,2]
[404079822,1769794246598,-500.0,9.998e-05,2]
[404079823,1769794246609,-500.0,9.998e-05,2]
[404079824,1769794246620,-500.0,9.998e-05,2]
[404079825,1769794246634,-500.0,9.998e-05,2]
[404079826,1769794246644,-500.0,9.998e-05,2]
[404079827,1769794246655,-500.0,9.998e-05,2]
[404079828,1769794246666,-500.0,9.998e-05,2]
[404079829,1769794246678,-500.0,9.998e-05,2]
[404079830,1769794246689,-19518.50099502,9.998e-05,2]
[404079831,1769794246699,-560.37100081,9.999e-05,2]
[404079832,1769794246710,-24847.5306222,0.0001,2]
[404080047,1769794250173,-678.14070067,0.0001,2]
[404080048,1769794309162,-319.944,9.8e-05,2]
[404080049,1769794309183,-200.892,9.8e-05,2]
[404080050,1769794309204,-5000.0,9.9e-05,2]
[404080051,1769794309375,-300.0,9.999e-05,2]
[404080052,1769794309409,-385979.164,0.0001,2]
[404080053,1769794467063,-454.73450843,9.099e-05,2]
[404080054,1769794468884,-4347.03614591,9.099e-05,2]
[404080055,1769794471328,-235.50935092,9.099e-05,2]
[404080056,1769794472022,-10000.01,9.099e-05,2]
[404080057,1769794472262,-10000.01,9.099e-05,2]
[404080058,1769794474303,-352.71846083,9.099e-05,2]
[404080059,1769794477380,-359.02377437,9.099e-05,2]
[404080060,1769794478083,-1155.41576376,9.099e-05,2]
[404080061,1769794478110,-7689.17847248,9.099e-05,2]
[404080063,1769794730208,500.0,9.098e-05,2]
[404080064,1769794730238,500.0,9.098e-05,2]
[404080065,1769794730266,514.02635195,9.098e-05,2]
[404080066,1769794730298,321.51230138,9.098e-05,2]
[404080067,1769794730325,500.0,9.098e-05,2]
[404080068,1769794730353,500.0,9.098e-05,2]
[404080069,1769794730382,514.02635195,9.098e-05,2]
[404080070,1769794730410,500.0,9.098e-05,2]
[404080071,1769794730439,500.0,9.098e-05,2]
[404080072,1769794730466,514.02635195,9.098e-05,2]
[404080073,1769794730494,500.0,9.098e-05,2]
[404080074,1769794730522,500.0,9.098e-05,2]
[404080075,1769794730549,500.0,9.098e-05,2]
[404080076,1769794730578,514.02635195,9.098e-05,2]
[404080077,1769794730605,500.0,9.098e-05,2]
[404080078,1769794730632,500.0,9.098e-05,2]
[404080079,1769794730661,514.02635195,9.098e-05,2]
[404080080,1769794730700,500.0,9.098e-05,2]
[404080081,1769794730732,500.0,9.098e-05,2]
[404080082,1769794730761,514.02635195,9.098e-05,2]
[404080083,1769794730791,94.33958692,9.098e-05,2]
[404080084,1769794731458,-254.7,9.098e-05,2]
[404080085,1769794732966,-150.96041308,9.098e-05,2]
[404080086,1769794732996,-500.0,9.098e-05,2]
[404080087,1769794733026,-514.02635195,9.098e-05,2]
[404080088,1769794733056,-500.0,9.098e-05,2]
[404080089,1769794733085,-500.0,9.098e-05,2]
[404080090,1769794733118,-514.02635195,9.098e-05,2]
[404080091,1769794733146,-500.0,9.098e-05,2]
[404080092,1769794733177,-500.0,9.098e-05,2]
[404080093,1769794733207,-500.0,9.098e-05,2]
[404080094,1769794733238,-514.02635195,9.098e-05,2]
[404080095,1769794733268,-113.93106214,9.098e-05,2]
[404080096,1769794733420,-386.06893786,9.098e-05,2]
[404080097,1769794733450,-500.0,9.098e-05,2]
[404080098,1769794733480,-500.0,9.098e-05,2]
[404080099,1769794733513,-514.02635195,9.098e-05,2]
[404080100,1769794733543,-500.0,9.098e-05,2]
[404080101,1769794733573,-500.0,9.098e-05,2]
[404080102,1769794733602,-514.02635195,9.098e-05,2]
[404080103,1769794733634,-500.0,9.098e-05,2]
[404080104,1769794733665,-514.02635195,9.098e-05,2]
[404080105,1769794733697,-532.23350508,9.098e-05,2]
[404080106,1769794733803,-79.24700242,9.098e-05,2]
[404080107,1769794733833,-500.0,9.098e-05,2]
[404080108,1769794733864,-514.02635195,9.098e-05,2]
[404080109,1769794733896,-500.0,9.098e-05,2]
[404080110,1769794733929,-500.0,9.098e-05,2]
[404080111,1769794733961,-514.02635195,9.098e-05,2]
[404080112,1769794733994,-500.0,9.098e-05,2]
[404080113,1769794734026,-500.0,9.098e-05,2]
[404080114,1769794734057,-514.02635195,9.098e-05,2]
[404080115,1769794734087,-500.0,9.098e-05,2]
[404080116,1769794734120,-243.33153151,9.098e-05,2]
[404080117,1769794734181,-270.69482044,9.098e-05,2]
[404080118,1769794734213,-500.0,9.098e-05,2]
[404080119,1769794734243,-500.0,9.098e-05,2]